[Event "*** Titled Tuesday Blitz"]
[Site "Chess.com"]
[Date "2021.03.09"]
[Round "1"]
[White "Matensien"]
[Black "Fighterman91"]
[Result "1/2-1/2"]
[WhiteElo "2375"]
[BlackElo "2673"]
[TimeControl "180+1"]
[EndTime "10:11:02 PST"]
[Termination "Game drawn by repetition"]

1. d4 {[%clk 0:02:59.1]} 1... Nf6 {[%clk 0:02:56.5]} 2. c4 {[%clk 0:02:59.2]}
2... g6 {[%clk 0:02:55.8]} 3. Nf3 {[%clk 0:02:57.1]} 3... Bg7 {[%clk 0:02:55.7]}
4. Nc3 {[%clk 0:02:55.9]} 4... d5 {[%clk 0:02:56.2]} 5. cxd5 {[%clk 0:02:51.8]}
5... Nxd5 {[%clk 0:02:56.2]} 6. e4 {[%clk 0:02:52.2]} 6... Nxc3 {[%clk
0:02:56.8]} 7. bxc3 {[%clk 0:02:53.1]} 7... c5 {[%clk 0:02:57.3]} 8. Be3 {[%clk
0:02:17.1]} 8... Qa5 {[%clk 0:02:56.3]} 9. Qd2 {[%clk 0:02:10.8]} 9... O-O
{[%clk 0:02:56.7]} 10. Be2 {[%clk 0:02:08.4]} 10... Nc6 {[%clk 0:02:46.7]} 11.
Rc1 {[%clk 0:02:02.2]} 11... cxd4 {[%clk 0:02:33.2]} 12. cxd4 {[%clk 0:02:03.1]}
12... Qxd2+ {[%clk 0:02:33.8]} 13. Kxd2 {[%clk 0:02:04]} 13... Rd8 {[%clk
0:02:31.6]} 14. Kc3 {[%clk 0:01:44.8]} 14... Bg4 {[%clk 0:02:29.9]} 15. e5
{[%clk 0:01:22.1]} 15... Rac8 {[%clk 0:02:23.6]} 16. Kb2 {[%clk 0:01:01.8]}
16... f6 {[%clk 0:02:01.3]} 17. exf6 {[%clk 0:00:57.8]} 17... Bxf6 {[%clk
0:02:01.4]} 18. Rhd1 {[%clk 0:00:52.6]} 18... Bxf3 {[%clk 0:01:32]} 19. Bxf3
{[%clk 0:00:52.2]} 19... Nxd4 {[%clk 0:01:32.4]} 20. Bxd4 {[%clk 0:00:38.4]}
20... Rxd4 {[%clk 0:00:55]} 21. Rxc8+ {[%clk 0:00:32.9]} 21... Rd8+ {[%clk
0:00:55.4]} 22. Kb3 {[%clk 0:00:18.6]} 22... Rxc8 {[%clk 0:00:54.7]} 23. Rd7
{[%clk 0:00:16.1]} 23... Rc3+ {[%clk 0:00:36.2]} 24. Kb4 {[%clk 0:00:16.3]}
24... Rc2 {[%clk 0:00:36.8]} 25. a4 {[%clk 0:00:09.6]} 25... Rxf2 {[%clk
0:00:23.1]} 26. Rxb7 {[%clk 0:00:08.5]} 26... Rb2+ {[%clk 0:00:07.2]} 27. Kc4
{[%clk 0:00:08.7]} 27... Rxb7 {[%clk 0:00:04.8]} 28. Bxb7 {[%clk 0:00:09.6]}
28... Be5 {[%clk 0:00:03.8]} 29. h3 {[%clk 0:00:07.1]} 29... Kg7 {[%clk
0:00:04.4]} 30. Kd5 {[%clk 0:00:07]} 30... Kf6 {[%clk 0:00:05.2]} 31. Bc8 {[%clk
0:00:06.3]} 31... Bc3 {[%clk 0:00:05.2]} 32. Bd7 {[%clk 0:00:03.2]} 32... a5
{[%clk 0:00:05.5]} 33. Bc8 {[%clk 0:00:03.2]} 33... Bb4 {[%clk 0:00:06.4]} 34.
Bd7 {[%clk 0:00:03.2]} 34... h6 {[%clk 0:00:07.1]} 35. Bc8 {[%clk 0:00:03.5]}
35... h5 {[%clk 0:00:07.7]} 36. Bd7 {[%clk 0:00:03.5]} 36... Kg5 {[%clk
0:00:08.2]} 37. Ke4 {[%clk 0:00:02.3]} 37... Kf6 {[%clk 0:00:07.4]} 38. Be8
{[%clk 0:00:02.1]} 38... h4 {[%clk 0:00:06.7]} 39. Bd7 {[%clk 0:00:02.2]} 39...
g5 {[%clk 0:00:07.4]} 40. Be8 {[%clk 0:00:02.7]} 40... e6 {[%clk 0:00:08.3]} 41.
Bd7 {[%clk 0:00:02.6]} 41... Ke7 {[%clk 0:00:09.2]} 42. Bb5 {[%clk 0:00:03.3]}
42... Kd6 {[%clk 0:00:10.1]} 43. Bc4 {[%clk 0:00:02.8]} 43... Bd2 {[%clk
0:00:10.9]} 44. Bb3 {[%clk 0:00:03.1]} 44... Bf4 {[%clk 0:00:11.6]} 45. Ba2
{[%clk 0:00:03.6]} 45... e5 {[%clk 0:00:12.1]} 46. Bb3 {[%clk 0:00:04.2]} 46...
Kc5 {[%clk 0:00:13]} 47. Bd1 {[%clk 0:00:04.2]} 47... Kb4 {[%clk 0:00:13.9]} 48.
Kd5 {[%clk 0:00:03.1]} 48... Kc3 {[%clk 0:00:14.8]} 49. Ke4 {[%clk 0:00:02.9]}
49... Kc4 {[%clk 0:00:14.7]} 50. Bc2 {[%clk 0:00:02.7]} 50... Kc3 {[%clk
0:00:15.1]} 51. Bd1 {[%clk 0:00:03.4]} 51... Kd2 {[%clk 0:00:16]} 52. Bb3 {[%clk
0:00:03.5]} 52... Ke2 {[%clk 0:00:16.8]} 53. Bd5 {[%clk 0:00:03.1]} 53... Kd2
{[%clk 0:00:16.5]} 54. Bc6 {[%clk 0:00:03.1]} 54... Kc3 {[%clk 0:00:16.3]} 55.
Bb5 {[%clk 0:00:03.3]} 55... Kb4 {[%clk 0:00:16.5]} 56. Bc6 {[%clk 0:00:03.7]}
56... Kc5 {[%clk 0:00:17.4]} 57. Bb5 {[%clk 0:00:04.3]} 57... Kb4 {[%clk
0:00:18.3]} 58. Bc6 {[%clk 0:00:04.7]} 58... Kc3 {[%clk 0:00:19.2]} 59. Bb5
{[%clk 0:00:05.4]} 59... Kd2 {[%clk 0:00:20.1]} 60. Kf3 {[%clk 0:00:04.8]} 60...
Ke1 {[%clk 0:00:20.9]} 61. Bc6 {[%clk 0:00:05.3]} 61... Bg3 {[%clk 0:00:20.7]}
62. Bb5 {[%clk 0:00:05.2]} 62... Kd1 {[%clk 0:00:21.1]} 63. Bc6 {[%clk
0:00:05.7]} 63... Kd2 {[%clk 0:00:21.7]} 64. Bb5 {[%clk 0:00:06.1]} 64... Kc3
{[%clk 0:00:22.1]} 65. Bc6 {[%clk 0:00:06.5]} 65... Kd4 {[%clk 0:00:23]} 66. Bb5
{[%clk 0:00:07]} 66... e4+ {[%clk 0:00:23]} 67. Ke2 {[%clk 0:00:07.3]} 67... Bf4
{[%clk 0:00:23.6]} 68. Bc6 {[%clk 0:00:07.3]} 68... Bd6 {[%clk 0:00:24.4]} 69.
Bb5 {[%clk 0:00:07.5]} 69... Bc5 {[%clk 0:00:25.3]} 70. Bc6 {[%clk 0:00:07.7]}
70... Bb6 {[%clk 0:00:26.2]} 71. Bb5 {[%clk 0:00:08.1]} 71... Bc7 {[%clk
0:00:27]} 72. Bc6 {[%clk 0:00:08.5]} 72... Bd6 {[%clk 0:00:27.7]} 73. Bb5 {[%clk
0:00:09]} 73... Bc5 {[%clk 0:00:28.6]} 74. Bc6 {[%clk 0:00:09.4]} 74... Ke5
{[%clk 0:00:29.4]} 75. Bb7 {[%clk 0:00:06]} 75... Bb6 {[%clk 0:00:30]} 76. Bc6
{[%clk 0:00:05.8]} 76... Ba7 {[%clk 0:00:30.9]} 77. Bb7 {[%clk 0:00:06.2]} 77...
Bb8 {[%clk 0:00:31.8]} 78. Bc6 {[%clk 0:00:06.7]} 78... Bc7 {[%clk 0:00:32.7]}
79. Bb7 {[%clk 0:00:07.2]} 79... Kf4 {[%clk 0:00:33.6]} 80. Bc6 {[%clk
0:00:06.7]} 80... Bd6 {[%clk 0:00:34.5]} 81. Bb7 {[%clk 0:00:06.9]} 81... Bc5
{[%clk 0:00:35.4]} 82. Bc6 {[%clk 0:00:07.1]} 82... Bb4 {[%clk 0:00:36.3]} 83.
Bb7 {[%clk 0:00:07.4]} 83... Ba3 {[%clk 0:00:36.8]} 84. Bc6 {[%clk 0:00:07.8]}
84... Bb2 {[%clk 0:00:37.7]} 85. Bb7 {[%clk 0:00:08.2]} 85... e3 {[%clk
0:00:38.6]} 86. Bc6 {[%clk 0:00:07.2]} 86... Bd4 {[%clk 0:00:39.3]} 87. Bb7
{[%clk 0:00:07.5]} 87... Ba7 {[%clk 0:00:40.2]} 88. Bc6 {[%clk 0:00:07.9]} 88...
Ke5 {[%clk 0:00:41]} 89. Bb7 {[%clk 0:00:07.9]} 89... Kd6 {[%clk 0:00:41.8]} 90.
Be4 {[%clk 0:00:07.3]} 90... Kc5 {[%clk 0:00:42.6]} 91. Bf5 {[%clk 0:00:07.5]}
91... Kc4 {[%clk 0:00:42.9]} 92. Bd7 {[%clk 0:00:08]} 92... Kb4 {[%clk
0:00:43.5]} 93. Bc6 {[%clk 0:00:08.1]} 93... Kc5 {[%clk 0:00:44.4]} 94. Bd7
{[%clk 0:00:08.6]} 94... Kd6 {[%clk 0:00:45.3]} 95. Bb5 {[%clk 0:00:08.7]} 95...
Ke5 {[%clk 0:00:46.2]} 96. Bc6 {[%clk 0:00:09.1]} 96... Kd6 {[%clk 0:00:46.6]}
97. Bb7 {[%clk 0:00:09.3]} 97... Ke6 {[%clk 0:00:47.2]} 98. Bc6 {[%clk
0:00:09.5]} 98... Kf5 {[%clk 0:00:48.1]} 99. Bb7 {[%clk 0:00:09.7]} 99... Kf4
{[%clk 0:00:49]} 100. Bc6 {[%clk 0:00:09.6]} 100... Kg3 {[%clk 0:00:49.9]} 101.
Bb7 {[%clk 0:00:09.3]} 101... Bb6 {[%clk 0:00:50.8]} 102. Bc6 {[%clk 0:00:09.5]}
102... Bc5 {[%clk 0:00:51.7]} 103. Bd5 {[%clk 0:00:09.6]} 103... Be7 {[%clk
0:00:52.6]} 104. Kxe3 {[%clk 0:00:08.5]} 104... g4 {[%clk 0:00:53.5]} 105. hxg4
{[%clk 0:00:08.2]} 105... Kxg4 {[%clk 0:00:54]} 106. Kd3 {[%clk 0:00:05.5]}
106... Bb4 {[%clk 0:00:54.9]} 107. Bc6 {[%clk 0:00:05.5]} 107... Kf4 {[%clk
0:00:55.8]} 108. Bd5 {[%clk 0:00:05.8]} 108... Kg3 {[%clk 0:00:56.7]} 109. Bc6
{[%clk 0:00:05.8]} 109... Be7 {[%clk 0:00:57.6]} 110. Bd5 {[%clk 0:00:06.1]}
110... Bd8 {[%clk 0:00:58.5]} 111. Bc6 {[%clk 0:00:06.4]} 111... Bf6 {[%clk
0:00:59.4]} 112. Bd5 {[%clk 0:00:06.8]} 112... Be7 {[%clk 0:01:00.3]} 113. Bc6
{[%clk 0:00:07]} 113... Bb4 {[%clk 0:01:01.2]} 114. Kc4 {[%clk 0:00:06.6]}
114... Kf4 {[%clk 0:01:02.1]} 115. Kb5 {[%clk 0:00:05.6]} 115... Ke5 {[%clk
0:01:03]} 116. Bf3 {[%clk 0:00:05.4]} 116... Kd6 {[%clk 0:01:03.9]} 117. Be4
{[%clk 0:00:05.5]} 117... Ke6 {[%clk 0:01:04.8]} 118. Bf3 {[%clk 0:00:05.8]}
118... Ke5 {[%clk 0:01:05.7]} 119. Bc6 {[%clk 0:00:06]} 119... Kf4 {[%clk
0:01:06.6]} 120. Bd5 {[%clk 0:00:06.3]} 120... Kg3 {[%clk 0:01:07]} 121. Bc6
{[%clk 0:00:06.5]} 121... Bc3 {[%clk 0:01:07.6]} 122. Bd5 {[%clk 0:00:06.7]}
122... Bd2 {[%clk 0:01:08.5]} 123. Bc6 {[%clk 0:00:06.9]} 123... Bc1 {[%clk
0:01:09.4]} 124. Bd5 {[%clk 0:00:07]} 124... Bd2 {[%clk 0:01:10.3]} 125. Bc6
{[%clk 0:00:07.5]} 125... Be1 {[%clk 0:01:11.2]} 126. Bd5 {[%clk 0:00:07.8]}
126... h3 {[%clk 0:01:12.1]} 127. gxh3 {[%clk 0:00:07.5]} 127... Kxh3 {[%clk
0:01:12.6]} 128. Bc6 {[%clk 0:00:07.8]} 128... Kg3 {[%clk 0:01:13.5]} 129. Bd5
{[%clk 0:00:08.2]} 129... Kf4 {[%clk 0:01:14.4]} 130. Bc6 {[%clk 0:00:09.1]}
130... Ke5 {[%clk 0:01:15.3]} 131. Bd7 {[%clk 0:00:09.3]} 131... Kd4 {[%clk
0:01:16.1]} 132. Bc6 {[%clk 0:00:10.2]} 132... Ke5 {[%clk 0:01:17]} 133. Bd7
{[%clk 0:00:10.4]} 133... Kd6 {[%clk 0:01:17.9]} 134. Bc6 {[%clk 0:00:11.3]}
134... Kc7 {[%clk 0:01:18.8]} 135. Be8 {[%clk 0:00:11.4]} 135... Kb8 {[%clk
0:01:19.7]} 136. Bc6 {[%clk 0:00:12.3]} 136... Ka7 {[%clk 0:01:20.1]} 137. Bd5
{[%clk 0:00:13]} 137... Bb4 {[%clk 0:01:20.8]} 138. Bc6 {[%clk 0:00:13.9]}
138... Be1 {[%clk 0:01:21.7]} 139. Bd5 {[%clk 0:00:14.2]} 139... Bb4 {[%clk
0:01:18.1]} 140. Bc6 {[%clk 0:00:15.1]} 140... Bd2 {[%clk 0:01:18.2]} 141. Bd5
{[%clk 0:00:15.6]} 141... Kb8 {[%clk 0:01:18.7]} 142. Bc6 {[%clk 0:00:16.5]}
142... Kc7 {[%clk 0:01:19.6]} 143. Bd5 {[%clk 0:00:17]} 143... Kd6 {[%clk
0:01:20.5]} 144. Bc6 {[%clk 0:00:17.9]} 144... Bc3 {[%clk 0:01:20.7]} 145. Be4
{[%clk 0:00:17.9]} 145... Bb4 {[%clk 0:01:21.6]} 146. Bc6 {[%clk 0:00:18.8]}
146... Ke5 {[%clk 0:01:21.9]} 147. Bb7 {[%clk 0:00:19.1]} 147... Kd4 {[%clk
0:01:22.1]} 148. Bc6 {[%clk 0:00:20]} 148... Ke5 {[%clk 0:01:22.8]} 149. Bb7
{[%clk 0:00:20.9]} 149... Ke6 {[%clk 0:01:23.5]} 150. Bc6 {[%clk 0:00:21.7]}
150... Ke7 {[%clk 0:01:24.4]} 151. Bb7 {[%clk 0:00:22.1]} 151... Kd6 {[%clk
0:01:25.3]} 152. Bc6 {[%clk 0:00:23]} 152... Ke5 {[%clk 0:01:26.2]} 1/2-1/2

[Event "*** Titled Tuesday Blitz"]
[Site "Chess.com"]
[Date "2021.03.09"]
[Round "1"]
[White "Isajevsky_Anton"]
[Black "anon219"]
[Result "1-0"]
[WhiteElo "2467"]
[BlackElo "2855"]
[TimeControl "180+1"]
[EndTime "10:11:31 PST"]
[Termination "Isajevsky_Anton won by checkmate"]

1. c4 {[%clk 0:03:00.4]} 1... e6 {[%clk 0:02:53.3]} 2. Nf3 {[%clk 0:02:59.7]}
2... d5 {[%clk 0:02:51.2]} 3. e3 {[%clk 0:02:59.6]} 3... Nf6 {[%clk 0:02:49.9]}
4. Nc3 {[%clk 0:02:58.8]} 4... c5 {[%clk 0:02:45.6]} 5. cxd5 {[%clk 0:02:58.2]}
5... exd5 {[%clk 0:02:46]} 6. d4 {[%clk 0:02:57.8]} 6... Nc6 {[%clk 0:02:41.2]}
7. Bb5 {[%clk 0:02:56.6]} 7... Bd6 {[%clk 0:02:36.5]} 8. dxc5 {[%clk 0:02:55.5]}
8... Bxc5 {[%clk 0:02:37.4]} 9. O-O {[%clk 0:02:55.6]} 9... O-O {[%clk
0:02:37.2]} 10. b3 {[%clk 0:02:54.4]} 10... Bg4 {[%clk 0:02:36.2]} 11. Bxc6
{[%clk 0:02:51.5]} 11... bxc6 {[%clk 0:02:35.9]} 12. Bb2 {[%clk 0:02:51.9]}
12... Re8 {[%clk 0:02:33.4]} 13. Rc1 {[%clk 0:02:48.6]} 13... Bd6 {[%clk
0:02:33.2]} 14. Ne2 {[%clk 0:02:44.2]} 14... Rc8 {[%clk 0:02:18.9]} 15. Ng3
{[%clk 0:02:21.4]} 15... h5 {[%clk 0:02:01.8]} 16. h3 {[%clk 0:01:36.9]} 16...
Bd7 {[%clk 0:01:59.4]} 17. Ne2 {[%clk 0:01:30.9]} 17... Ne4 {[%clk 0:01:55.3]}
18. Nf4 {[%clk 0:01:28.4]} 18... Bxf4 {[%clk 0:01:21.2]} 19. exf4 {[%clk
0:01:27.4]} 19... Bf5 {[%clk 0:01:21.1]} 20. Nd4 {[%clk 0:01:23.3]} 20... Qd7
{[%clk 0:01:08.5]} 21. Qxh5 {[%clk 0:01:22]} 21... Bg6 {[%clk 0:01:08.8]} 22.
Qg4 {[%clk 0:01:16.5]} 22... Qxg4 {[%clk 0:00:58]} 23. hxg4 {[%clk 0:01:16]}
23... c5 {[%clk 0:00:58.7]} 24. Nf3 {[%clk 0:00:55.9]} 24... f6 {[%clk
0:00:57.2]} 25. Rfd1 {[%clk 0:00:53]} 25... Bf7 {[%clk 0:00:52.9]} 26. Nd2
{[%clk 0:00:48.4]} 26... Nd6 {[%clk 0:00:49.2]} 27. Ba3 {[%clk 0:00:45.8]} 27...
Nb5 {[%clk 0:00:34.9]} 28. Bxc5 {[%clk 0:00:40.5]} 28... Re2 {[%clk 0:00:33.7]}
29. Kf1 {[%clk 0:00:34.5]} 29... Re6 {[%clk 0:00:29]} 30. a4 {[%clk 0:00:29.3]}
30... Rec6 {[%clk 0:00:25.3]} 31. b4 {[%clk 0:00:26.1]} 31... Nd6 {[%clk
0:00:21.3]} 32. Nb3 {[%clk 0:00:17.1]} 32... Ne4 {[%clk 0:00:20.4]} 33. f3
{[%clk 0:00:14.1]} 33... Nxc5 {[%clk 0:00:14.4]} 34. Rxc5 {[%clk 0:00:13.1]}
34... Rxc5 {[%clk 0:00:14.3]} 35. Nxc5 {[%clk 0:00:12.9]} 35... a5 {[%clk
0:00:14.5]} 36. Nd3 {[%clk 0:00:11.4]} 36... axb4 {[%clk 0:00:14.1]} 37. Nxb4
{[%clk 0:00:11.4]} 37... Rc4 {[%clk 0:00:14.3]} 38. Nxd5 {[%clk 0:00:11.3]}
38... Rxa4 {[%clk 0:00:14.4]} 39. f5 {[%clk 0:00:10.8]} 39... Kh7 {[%clk
0:00:13.7]} 40. Kf2 {[%clk 0:00:10.8]} 40... Ra2+ {[%clk 0:00:13.4]} 41. Kg3
{[%clk 0:00:10.7]} 41... Kg8 {[%clk 0:00:11.7]} 42. Nf4 {[%clk 0:00:10.1]} 42...
Kf8 {[%clk 0:00:11.2]} 43. Rd7 {[%clk 0:00:09.8]} 43... Ke8 {[%clk 0:00:11.2]}
44. Rb7 {[%clk 0:00:09.4]} 44... Ra6 {[%clk 0:00:10.8]} 45. Nh5 {[%clk
0:00:08.5]} 45... g6 {[%clk 0:00:06.4]} 46. fxg6 {[%clk 0:00:06.5]} 46... Bxg6
{[%clk 0:00:06.7]} 47. Nf4 {[%clk 0:00:05.7]} 47... Bf7 {[%clk 0:00:07.2]} 48.
Nd3 {[%clk 0:00:04.6]} 48... Rd6 {[%clk 0:00:06.6]} 49. Nf4 {[%clk 0:00:04.4]}
49... Kf8 {[%clk 0:00:07]} 50. Kh4 {[%clk 0:00:04.2]} 50... Rd4 {[%clk
0:00:06.5]} 51. Kg3 {[%clk 0:00:04.1]} 51... Rd6 {[%clk 0:00:06.3]} 52. Rb8+
{[%clk 0:00:04.5]} 52... Kg7 {[%clk 0:00:06.4]} 53. Rb2 {[%clk 0:00:05.4]} 53...
Rd4 {[%clk 0:00:06.2]} 54. Ne2 {[%clk 0:00:05.5]} 54... Rd6 {[%clk 0:00:06.5]}
55. Ng1 {[%clk 0:00:05.5]} 55... Rd5 {[%clk 0:00:06.9]} 56. Nh3 {[%clk
0:00:05.7]} 56... Rd4 {[%clk 0:00:07.5]} 57. g5 {[%clk 0:00:04.5]} 57... f5
{[%clk 0:00:07.2]} 58. Nf4 {[%clk 0:00:04.6]} 58... Ra4 {[%clk 0:00:07.1]} 59.
Rb7 {[%clk 0:00:04.3]} 59... Kg8 {[%clk 0:00:07.3]} 60. g6 {[%clk 0:00:04.4]}
60... Be8 {[%clk 0:00:07.7]} 61. Rb8 {[%clk 0:00:03.8]} 61... Kf8 {[%clk
0:00:06.3]} 62. g7+ {[%clk 0:00:03.9]} 62... Kxg7 {[%clk 0:00:06.9]} 63. Rxe8
{[%clk 0:00:04]} 63... Kf7 {[%clk 0:00:07.8]} 64. Re2 {[%clk 0:00:03.4]} 64...
Kf6 {[%clk 0:00:08.2]} 65. Nh3 {[%clk 0:00:03.9]} 65... Kg6 {[%clk 0:00:08.3]}
66. Kf2 {[%clk 0:00:04.8]} 66... Kf6 {[%clk 0:00:08.8]} 67. g3 {[%clk 0:00:05]}
67... Kg6 {[%clk 0:00:09]} 68. Nf4+ {[%clk 0:00:05.9]} 68... Kf6 {[%clk
0:00:09.4]} 69. Re6+ {[%clk 0:00:06.7]} 69... Kf7 {[%clk 0:00:09.7]} 70. Re1
{[%clk 0:00:07.1]} 70... Kf6 {[%clk 0:00:10]} 71. Re2 {[%clk 0:00:08]} 71... Kf7
{[%clk 0:00:10.4]} 72. Rb2 {[%clk 0:00:08.5]} 72... Ra3 {[%clk 0:00:10.2]} 73.
Kg2 {[%clk 0:00:08.7]} 73... Kf6 {[%clk 0:00:10.1]} 74. Ne2 {[%clk 0:00:08.5]}
74... Re3 {[%clk 0:00:09.3]} 75. Rd2 {[%clk 0:00:08.4]} 75... Kf7 {[%clk
0:00:08.7]} 76. Nd4 {[%clk 0:00:07.9]} 76... Kf6 {[%clk 0:00:08.7]} 77. Kf2
{[%clk 0:00:08.4]} 77... Ra3 {[%clk 0:00:08.6]} 78. f4 {[%clk 0:00:08.7]} 78...
Kg6 {[%clk 0:00:07.8]} 79. Nf3 {[%clk 0:00:09.1]} 79... Kf6 {[%clk 0:00:07.6]}
80. Rd6+ {[%clk 0:00:08.2]} 80... Ke7 {[%clk 0:00:08]} 81. Rb6 {[%clk 0:00:08]}
81... Ra2+ {[%clk 0:00:08.4]} 82. Ke3 {[%clk 0:00:08]} 82... Ra3+ {[%clk
0:00:08.9]} 83. Ke2 {[%clk 0:00:08.1]} 83... Ra2+ {[%clk 0:00:09.4]} 84. Kf1
{[%clk 0:00:08.3]} 84... Ra3 {[%clk 0:00:09.7]} 85. Kg2 {[%clk 0:00:08.5]} 85...
Ra2+ {[%clk 0:00:09.6]} 86. Kh3 {[%clk 0:00:08.5]} 86... Ra3 {[%clk 0:00:10.1]}
87. Nd4 {[%clk 0:00:08.1]} 87... Ra5 {[%clk 0:00:10.6]} 88. Kh4 {[%clk
0:00:08.1]} 88... Kf7 {[%clk 0:00:08.7]} 89. Kg5 {[%clk 0:00:08.2]} 89... Ra8
{[%clk 0:00:09]} 90. Rb7+ {[%clk 0:00:07.2]} 90... Ke8 {[%clk 0:00:08.8]} 91.
Nxf5 {[%clk 0:00:07.3]} 91... Ra5 {[%clk 0:00:08.7]} 92. Rh7 {[%clk 0:00:05.9]}
92... Kf8 {[%clk 0:00:08.9]} 93. g4 {[%clk 0:00:06.2]} 93... Ra6 {[%clk
0:00:08.9]} 94. Rb7 {[%clk 0:00:06.5]} 94... Ra5 {[%clk 0:00:09.1]} 95. Rb6
{[%clk 0:00:06.7]} 95... Ra7 {[%clk 0:00:09.4]} 96. Kf6 {[%clk 0:00:06.7]} 96...
Rf7+ {[%clk 0:00:09.3]} 97. Ke5 {[%clk 0:00:06.5]} 97... Rd7 {[%clk 0:00:09.2]}
98. Rb8+ {[%clk 0:00:06.2]} 98... Kf7 {[%clk 0:00:09.2]} 99. Rb6 {[%clk
0:00:06.6]} 99... Ra7 {[%clk 0:00:09.1]} 100. g5 {[%clk 0:00:07.1]} 100... Ra5+
{[%clk 0:00:08.7]} 101. Ke4 {[%clk 0:00:07.6]} 101... Ra4+ {[%clk 0:00:09.2]}
102. Kf3 {[%clk 0:00:07.8]} 102... Ra1 {[%clk 0:00:08.1]} 103. Rf6+ {[%clk
0:00:07.1]} 103... Kg8 {[%clk 0:00:06.7]} 104. Ng3 {[%clk 0:00:05.7]} 104...
Ra3+ {[%clk 0:00:06.2]} 105. Kg4 {[%clk 0:00:05.9]} 105... Ra5 {[%clk
0:00:06.2]} 106. Rb6 {[%clk 0:00:05.5]} 106... Kg7 {[%clk 0:00:06.3]} 107. f5
{[%clk 0:00:05]} 107... Ra4+ {[%clk 0:00:05.6]} 108. Kh5 {[%clk 0:00:05.2]}
108... Ra3 {[%clk 0:00:06.5]} 109. Rb7+ {[%clk 0:00:05]} 109... Kg8 {[%clk
0:00:06.9]} 110. Kg6 {[%clk 0:00:04.8]} 110... Kf8 {[%clk 0:00:07.2]} 111. f6
{[%clk 0:00:04.7]} 111... Ke8 {[%clk 0:00:04.7]} 112. Nf5 {[%clk 0:00:04.3]}
112... Ra6 {[%clk 0:00:03.7]} 113. Re7+ {[%clk 0:00:04.6]} 113... Kf8 {[%clk
0:00:03.7]} 114. Rf7+ {[%clk 0:00:04.8]} 114... Ke8 {[%clk 0:00:04.2]} 115. Rh7
{[%clk 0:00:05]} 115... Kd8 {[%clk 0:00:02.4]} 116. Nh6 {[%clk 0:00:03.9]}
116... Ke8 {[%clk 0:00:02.5]} 117. Nf7 {[%clk 0:00:04.8]} 117... Kf8 {[%clk
0:00:02.5]} 118. Ne5 {[%clk 0:00:05.3]} 118... Ke8 {[%clk 0:00:02.5]} 119. Kf5
{[%clk 0:00:05.8]} 119... Kd8 {[%clk 0:00:02.8]} 120. g6 {[%clk 0:00:06.3]}
120... Kc8 {[%clk 0:00:01.9]} 121. g7 {[%clk 0:00:06.6]} 121... Kb7 {[%clk
0:00:02]} 122. g8=Q+ {[%clk 0:00:06.1]} 122... Kb6 {[%clk 0:00:02.9]} 123. Qb3+
{[%clk 0:00:06]} 123... Ka5 {[%clk 0:00:03.8]} 124. Qa3+ {[%clk 0:00:06]} 124...
Kb5 {[%clk 0:00:04]} 125. Qxa6+ {[%clk 0:00:06.9]} 125... Kxa6 {[%clk
0:00:04.9]} 126. f7 {[%clk 0:00:07.6]} 126... Kb5 {[%clk 0:00:05.8]} 127. f8=Q
{[%clk 0:00:07.2]} 127... Ka4 {[%clk 0:00:06.7]} 128. Qd6 {[%clk 0:00:07.4]}
128... Kb3 {[%clk 0:00:07.6]} 129. Qc7 {[%clk 0:00:07.8]} 129... Kb2 {[%clk
0:00:08.5]} 130. Rh8 {[%clk 0:00:08.4]} 130... Kb1 {[%clk 0:00:09.4]} 131. Rb8+
{[%clk 0:00:08.9]} 131... Ka1 {[%clk 0:00:10.3]} 132. Qa7# {[%clk 0:00:09.4]}
1-0

[Event "*** Titled Tuesday Blitz"]
[Site "Chess.com"]
[Date "2021.03.09"]
[Round "2"]
[White "MillyNeuf"]
[Black "FontVella8"]
[Result "0-1"]
[WhiteElo "2284"]
[BlackElo "2489"]
[TimeControl "180+1"]
[EndTime "10:13:52 PST"]
[Termination "FontVella8 won by resignation"]

1. e4 {[%clk 0:03:00.9]} 1... e5 {[%clk 0:03:00.1]} 2. Nf3 {[%clk 0:03:00.8]}
2... Nc6 {[%clk 0:03:00.7]} 3. Bc4 {[%clk 0:03:00.9]} 3... Bc5 {[%clk
0:03:00.8]} 4. O-O {[%clk 0:03:00.9]} 4... Nf6 {[%clk 0:03:01.3]} 5. d3 {[%clk
0:03:01.1]} 5... d6 {[%clk 0:03:01.3]} 6. c3 {[%clk 0:02:58.1]} 6... h6 {[%clk
0:03:00.5]} 7. a4 {[%clk 0:02:56.6]} 7... a5 {[%clk 0:03:00.3]} 8. Nbd2 {[%clk
0:02:57.1]} 8... O-O {[%clk 0:02:59.8]} 9. h3 {[%clk 0:02:57.2]} 9... Be6 {[%clk
0:02:59]} 10. Re1 {[%clk 0:02:56.9]} 10... Qb8 {[%clk 0:02:59]} 11. Bxe6 {[%clk
0:02:49]} 11... fxe6 {[%clk 0:02:58.9]} 12. Nf1 {[%clk 0:02:49.9]} 12... Qa7
{[%clk 0:02:58.8]} 13. Be3 {[%clk 0:02:48.8]} 13... Nh5 {[%clk 0:02:54.2]} 14.
Qd2 {[%clk 0:02:45.8]} 14... Nf4 {[%clk 0:02:49.5]} 15. Bxc5 {[%clk 0:02:37.6]}
15... Qxc5 {[%clk 0:02:49.1]} 16. Rad1 {[%clk 0:02:36.8]} 16... Nxh3+ {[%clk
0:02:48.5]} 17. gxh3 {[%clk 0:02:29.6]} 17... Rxf3 {[%clk 0:02:48.6]} 18. Kg2
{[%clk 0:02:30.5]} 18... Raf8 {[%clk 0:02:47.8]} 19. Ne3 {[%clk 0:02:27.9]}
19... Ne7 {[%clk 0:02:41]} 20. Qe2 {[%clk 0:02:25.5]} 20... Ng6 {[%clk
0:02:39.5]} 21. Qxf3 {[%clk 0:02:21.2]} 21... Nh4+ {[%clk 0:02:39.5]} 0-1

[Event "*** Titled Tuesday Blitz"]
[Site "Chess.com"]
[Date "2021.03.09"]
[Round "2"]
[White "kidagent"]
[Black "goldihouse"]
[Result "0-1"]
[WhiteElo "2302"]
[BlackElo "2554"]
[TimeControl "180+1"]
[EndTime "10:14:21 PST"]
[Termination "goldihouse won by resignation"]

1. e4 {[%clk 0:03:00.9]} 1... e6 {[%clk 0:02:59.1]} 2. d4 {[%clk 0:03:00.7]}
2... d5 {[%clk 0:03:00]} 3. Nd2 {[%clk 0:03:01.1]} 3... Nc6 {[%clk 0:02:59.5]}
4. Ngf3 {[%clk 0:03:00.3]} 4... Nf6 {[%clk 0:02:59.3]} 5. e5 {[%clk 0:02:59.9]}
5... Nd7 {[%clk 0:02:59]} 6. Bb5 {[%clk 0:03:00.4]} 6... f6 {[%clk 0:02:58.6]}
7. exf6 {[%clk 0:02:59]} 7... Qxf6 {[%clk 0:02:59.5]} 8. c3 {[%clk 0:02:58.4]}
8... Bd6 {[%clk 0:02:58.2]} 9. O-O {[%clk 0:02:53.4]} 9... O-O {[%clk 0:02:58]}
10. Re1 {[%clk 0:02:52.5]} 10... e5 {[%clk 0:02:58.2]} 11. dxe5 {[%clk
0:02:46.6]} 11... Ncxe5 {[%clk 0:02:57.6]} 12. Nxe5 {[%clk 0:02:43.2]} 12...
Qxf2+ {[%clk 0:02:45.5]} 13. Kh1 {[%clk 0:02:42.8]} 13... Nxe5 {[%clk
0:02:45.2]} 14. Nb3 {[%clk 0:02:27.5]} 14... c6 {[%clk 0:02:37.5]} 15. Be3
{[%clk 0:02:18.4]} 15... Qh4 {[%clk 0:02:32.2]} 16. Be2 {[%clk 0:02:16.9]} 16...
Ng4 {[%clk 0:02:01.9]} 0-1